fUST/lending_fUST_20250323
["ID","MTS","AMOUNT","RATE_DAILY","PERIOD"]
[356576207,1742706427172,-434.68057198,0.00021354,2]
[356576208,1742706427193,-434.68057198,0.00021354,2]
[356576209,1742706427213,-300.0,0.00021453,2]
[356576210,1742706427234,-3886.76143091,0.00021453,2]
[356576211,1742706448274,-1454.06544549,0.00021453,2]
[356576212,1742706448297,-500.0,0.00021454,2]
[356576213,1742706448320,-236.66506497,0.00021454,2]
[356576226,1742706631951,-300.0,0.00020503,2]
[356576227,1742706631961,-336.94,0.00020504,2]
[356576228,1742706632010,-492.98234495,0.00020504,2]
[356576239,1742706637774,-500.0,0.00020503,2]
[356576240,1742706637784,-500.0,0.00020503,2]
[356576241,1742706637793,-500.0,0.00020503,2]
[356576242,1742706637803,-500.0,0.00020503,2]
[356576243,1742706637812,-500.0,0.00020503,2]
[356576244,1742706637822,-500.0,0.00020503,2]
[356576245,1742706637831,-500.0,0.00020503,2]
[356576246,1742706637841,-500.0,0.00020503,2]
[356576247,1742706637851,-500.0,0.00020503,2]
[356576248,1742706637860,-500.0,0.00020503,2]
[356576249,1742706637870,-500.0,0.00020503,2]
[356576250,1742706637879,-500.0,0.00020503,2]
[356576252,1742706637888,-500.0,0.00020503,2]
[356576254,1742706637898,-95.63298163,0.00020503,2]
[356576256,1742706637909,-404.36701837,0.00020503,2]
[356576257,1742706637918,-500.0,0.00020503,2]
[356576258,1742706637927,-500.0,0.00020503,2]
[356576259,1742706637937,-500.0,0.00020503,2]
[356576260,1742706637947,-500.0,0.00020503,2]
[356576261,1742706637957,-500.0,0.00020503,2]
[356576262,1742706637966,-500.0,0.00020503,2]
[356576263,1742706637976,-500.0,0.00020503,2]
[356576264,1742706637987,-500.0,0.00020503,2]
[356576265,1742706637996,-500.0,0.00020503,2]
[356576266,1742706638006,-500.0,0.00020503,2]
[356576267,1742706638019,-500.0,0.00020503,2]
[356576268,1742706638029,-282.24625308,0.00020503,2]
[356576269,1742706638038,-500.0,0.00020503,2]
[356576270,1742706638047,-500.0,0.00020503,2]
[356576271,1742706638059,-500.0,0.00020503,2]
[356576272,1742706638068,-79.65341279,0.00020504,2]
[356576290,1742706640109,-345.24916212,0.00020504,2]
[356576291,1742706640167,-23645.17508014,0.00020504,2]
[356576292,1742706640177,-1506.15192351,0.00021353,2]
[356576293,1742706640186,-184.91489361,0.00021453,2]
[356576294,1742706640196,-500.0,0.00021453,2]
[356576295,1742706640206,-235.15929194,0.00021453,2]
[356576296,1742706640219,-13540.11057632,0.00021454,2]
[356576297,1742706640229,-5000.0,0.00021455,2]
[356576298,1742706640240,-6204.72595799,0.00021554,5]
[356576326,1742706646172,-0.028235,0.00021455,2]
[356576446,1742707550093,-322.17148166,0.00020478,2]
[356576453,1742707635079,-433.10778407,0.00020478,2]
[356576454,1742707642074,-725.72073427,0.00020478,2]
[356576455,1742707642096,-467.892967,0.00020479,2]
[356576456,1742707642121,-300.0,0.00020494,2]
[356576457,1742707642145,-500.0,0.00020495,2]
[356576458,1742707642170,-500.0,0.00020495,2]
[356576459,1742707642193,-500.0,0.00020495,2]
[356576460,1742707642218,-500.0,0.00020495,2]
[356576461,1742707642243,-135.64866892,0.00020495,2]
[356576462,1742707642473,-364.35133108,0.00020495,2]
[356576463,1742707642497,-500.0,0.00020495,2]
[356576464,1742707642521,-179.74258259,0.00020495,2]
[356576465,1742707642548,-500.0,0.00020495,2]
[356576466,1742707642574,-500.0,0.00020495,2]
[356576467,1742707642598,-167.25755891,0.00020495,2]
[356576468,1742707642626,-500.0,0.00020495,2]
[356576469,1742707642651,-500.0,0.00020495,2]
[356576470,1742707642675,-500.0,0.00020495,2]
[356576471,1742707642699,-500.0,0.00020495,2]
[356576472,1742707642723,-500.0,0.00020495,2]
[356576473,1742707642748,-500.0,0.00020495,2]
[356576474,1742707642773,-500.0,0.00020495,2]
[356576475,1742707642798,-500.0,0.00020495,2]
[356576476,1742707642823,-500.0,0.00020495,2]
[356576477,1742707642847,-500.0,0.00020495,2]
[356576478,1742707642872,-500.0,0.00020495,2]
[356576479,1742707642896,-500.0,0.00020495,2]
[356576480,1742707642921,-500.0,0.00020495,2]
[356576481,1742707642945,-500.0,0.00020495,2]
[356576482,1742707642970,-500.0,0.00020495,2]
[356576483,1742707642994,-500.0,0.00020495,2]
[356576484,1742707643018,-451.82610696,0.00020495,2]
[356576485,1742707643043,-500.0,0.00020495,2]
[356576486,1742707643068,-500.0,0.00020495,2]
[356576487,1742707643093,-500.0,0.00020495,2]
[356576488,1742707643119,-500.0,0.00020495,2]
[356576489,1742707643144,-500.0,0.00020495,2]
[356576490,1742707643169,-500.0,0.00020495,2]
[356576491,1742707643193,-500.0,0.00020495,2]
[356576492,1742707643257,-500.0,0.00020495,2]
[356576493,1742707643283,-630.0,0.00020495,2]
[356576494,1742707643308,-23.97501132,0.00020495,2]
[356576501,1742707747087,-300.0,0.00015249,2]
[356576502,1742707747113,-30020.09495603,0.0001525,2]
[356576503,1742707747136,-356.53032957,0.00016685,2]
[356576504,1742707750094,-63.46967043,0.00016685,2]
[356576505,1742707750115,-196.88781793,0.00018256,2]
[356576509,1742707755109,-374.46399583,0.00018256,2]
[356576510,1742707768142,-15.64818624,0.00018256,2]
[356576511,1742707768164,-823.0,0.00019975,2]
[356576512,1742707768188,-1678.79573185,0.000201,2]
[356576513,1742707768209,-12.40722693,0.000202,2]
[356576554,1742707832197,-144.08964543,0.000202,2]
[356576555,1742707832206,-300.0,0.00020396,2]
[356576557,1742707832216,-20655.4397911,0.00020397,2]
[356576570,1742707838141,-185.25083988,0.00020396,2]
[356576571,1742707838151,-500.0,0.00020396,2]
[356576572,1742707838160,-500.0,0.00020396,2]
[356576573,1742707838169,-500.0,0.00020396,2]
[356576574,1742707838178,-536.60510051,0.00020396,2]
[356576575,1742707838187,-4244.5602089,0.00020397,2]
[356576576,1742707838196,-1678.79573181,0.00020872,2]
[356576577,1742707838205,-173.28484213,0.00021014,2]
[356576578,1742707838214,-434.68057198,0.000213,2]
[356576579,1742707838223,-4151.44702851,0.00021352,2]
[356576580,1742707838232,-5000.0,0.00021354,2]
[356576581,1742707838241,-1307.89229642,0.00021354,2]
[356576582,1742707838250,-200.0,0.00021383,2]
[356576583,1742707838259,-500.0,0.00021383,2]
[356576584,1742707838268,-500.0,0.00021383,2]
[356576585,1742707838278,-499.04438425,0.00021383,2]
[356576586,1742707838288,-500.0,0.00021383,2]
[356576587,1742707838297,-500.0,0.00021383,2]
[356576588,1742707838306,-500.0,0.00021414,2]
[356576589,1742707838316,-620.56220065,0.00021441,2]
[356576590,1742707838325,-644.15752048,0.00021453,2]
[356576591,1742707838334,-133280.04916407,0.00021454,2]
[356576592,1742707838349,-82060.95363685,0.00021454,2]
[356576593,1742707838360,-350.4527043,0.00021454,2]
[356576594,1742707838372,-3075.94034887,0.00021454,2]
[356576595,1742707838383,-42191.64936865,0.00021454,2]
[356576596,1742707838404,-3378.78992834,0.00021454,2]
[356576597,1742707838416,-7283.7317765,0.00021454,2]
[356576598,1742707838427,-9322.91230096,0.00021454,2]
[356576638,1742707840371,-259.34527491,0.00021354,2]
[356576639,1742707840381,-4547.30907063,0.00021454,2]
[356576680,1742707864138,230.676784,0.00010959,2]
[356576733,1742708832117,-541.41492938,0.00019581,2]
[356576734,1742708832139,-152.89778022,0.00019877,2]
[356576735,1742708835115,-442.31170908,0.00019877,2]
[356576736,1742708835137,-244.2996988,0.00019963,2]
[356576737,1742708835158,-203.4402602,0.00020076,2]
[356576738,1742708835181,-363.5392796,0.00020156,2]
[356576739,1742708835202,-250.0,0.00020224,2]
[356576740,1742708835221,-240.21599026,0.00020385,2]
[356576741,1742708837153,-472.82939629,0.0001822,2]
[356576742,1742708837174,-1619.23805145,0.00020385,2]
[356576765,1742708977343,230.676784,0.00010959,2]
[356576787,1742709032341,-1224.46577995,0.00020385,2]
[356576788,1742709032350,-48.85460073,0.00020485,2]
[356576789,1742709032398,-322.11552527,0.00020485,2]
[356576790,1742709032407,-300.0,0.00020998,2]
[356576791,1742709032416,-500.0,0.00020999,2]
[356576792,1742709032426,-500.0,0.00020999,2]
[356576793,1742709032436,-500.0,0.00020999,2]
[356576794,1742709032446,-500.0,0.00020999,2]
[356576795,1742709032455,-500.0,0.00020999,2]
[356576796,1742709032465,-495.80277724,0.00020999,2]
[356576797,1742709032474,-605.28957497,0.00020999,2]
[356576798,1742709032484,-233.92106388,0.00020999,2]
[356576799,1742709032493,-762.8928316,0.00021,120]
[356576800,1742709032503,-8758.11081433,0.00021,2]
[356576801,1742709032515,-1084.74651482,0.00021,2]
[356576811,1742709038160,-2697.14309063,0.00021,2]
[356576812,1742709038172,-2282.53026762,0.00021,2]
[356576816,1742709040630,-4549.91186261,0.00021,2]
[356576817,1742709040750,-378.6759668,0.00021,2]
[356576818,1742709040766,-248.88148318,0.00021,2]
[356576819,1742709040775,-1259.09679891,0.000212,2]
[356576820,1742709040785,-152.40828145,0.0002127,2]
[356576821,1742709040794,-190.21262979,0.00021299,2]
[356576822,1742709040803,-589.02438208,0.00021299,2]
[356576823,1742709040812,-31132.42985594,0.000213,2]
[356576824,1742709040822,-155.34592353,0.000213,120]
[356576825,1742709040831,-1942.42715466,0.00021338,2]
[356576826,1742709040841,-5000.0,0.00021354,2]
[356576827,1742709040850,-1296.64425184,0.0002137,2]
[356576828,1742709040859,-183696.16212013,0.00021454,2]
[356576866,1742709172086,1000.0,0.00012,2]
[356576867,1742709184100,1000.0,0.00012,2]
[356576868,1742709190918,1000.0,0.00012,2]
[356576869,1742709198058,1000.0,0.00012,2]
[356576870,1742709204320,1000.0,0.00012,2]
[356576871,1742709210260,1000.0,0.00012,2]
[356576872,1742709217261,1000.0,0.00012,2]
[356576873,1742709224459,1000.0,0.00012,2]
[356576874,1742709230836,1000.0,0.00012,2]
[356576875,1742709242760,724.93,0.00012,2]
[356576879,1742710027132,-200.0,0.00017327,2]
[356576880,1742710027156,-9.20674477,0.0001822,2]
[356576881,1742710041150,-175.71289559,0.0001822,2]
[356576882,1742710041172,-250.0,0.0001962,2]
[356576883,1742710041193,-325.189085,0.00020223,2]
[356576884,1742710041216,-300.0,0.0002046,2]
[356576885,1742710041238,-500.0,0.00020461,2]
[356576886,1742710041264,-500.0,0.00020461,2]
[356576887,1742710041286,-500.0,0.00020461,2]
[356576888,1742710041310,-500.0,0.00020461,2]
[356576889,1742710041333,-500.0,0.00020461,2]
[356576890,1742710041359,-500.0,0.00020461,2]
[356576891,1742710041381,-546.3903843,0.00020461,2]
[356576892,1742710041404,-500.0,0.00020461,2]
[356576893,1742710041428,-500.0,0.00020461,2]
[356576894,1742710041452,-500.0,0.00020461,2]
[356576895,1742710041479,-292.02060093,0.00020461,2]
[356576899,1742710148141,-452.995139,0.00020024,2]
[356576900,1742710148166,-300.0,0.00020112,2]
[356576901,1742710148193,-21627.57972685,0.00020113,2]
[356576933,1742710232547,-3272.42027315,0.00020113,2]
[356576935,1742710232556,-300.0,0.0002046,2]
[356576937,1742710232566,-494.93165213,0.00020999,2]
[356576939,1742710232575,-48025.03742403,0.00021,2]
[356576941,1742710232585,-5000.0,0.00021199,2]
[356576943,1742710232595,-23664.43083839,0.00021354,2]
[356576948,1742710232642,-66475.83740162,0.00021354,2]
[356576950,1742710232653,-278.80680054,0.00021354,2]
[356576952,1742710232665,-851.34772024,0.00021354,2]
[356576967,1742710238272,-227.37670937,0.00020999,2]
[356576969,1742710238282,-500.0,0.00020999,2]
[356576971,1742710238291,-487.18145916,0.00020999,2]
[356576972,1742710238301,-500.0,0.00020999,2]
[356576973,1742710238311,-500.0,0.00020999,2]
[356576974,1742710238320,-500.0,0.00020999,2]
[356576975,1742710238329,-500.0,0.00020999,2]
[356576976,1742710238339,-500.0,0.00020999,2]
[356576977,1742710238348,-500.0,0.00020999,2]
[356576978,1742710238358,-500.0,0.00020999,2]
[356576979,1742710238367,-500.0,0.00020999,2]
[356576980,1742710238377,-500.0,0.00020999,2]
[356576981,1742710238387,-500.0,0.00020999,2]
[356576982,1742710238396,-500.0,0.00020999,2]
[356576983,1742710238407,-10474.79084906,0.00021354,2]
[356576984,1742710238419,-40832.8303162,0.00021354,2]
[356577037,1742710246447,-150.0,0.0002114,2]
[356577038,1742710246457,-302.07000005,0.00021354,2]
[356577041,1742710991262,10000.0,0.00014,30]
[356577042,1742710997038,10000.0,0.00014,30]
[356577043,1742711005097,10000.0,0.00014,30]
[356577044,1742711011229,10000.0,0.00014,30]
[356577058,1742711149119,-322.17148166,0.00018316,3]
[356577060,1742711231105,-6676.82851834,0.00018316,3]
[356577061,1742711231128,-1097.8014,0.00018316,2]
[356577062,1742711231150,-179.74258259,0.0001995,2]
[356577063,1742711231175,-500.0,0.0001995,2]
[356577064,1742711231203,-500.0,0.0001995,2]
[356577065,1742711231228,-500.0,0.0001995,2]
[356577066,1742711231255,-500.0,0.0001995,2]
[356577067,1742711231279,-500.0,0.0001995,2]
[356577068,1742711231305,-250.53180302,0.0001995,2]
[356577069,1742711231332,-500.0,0.0001995,2]
[356577070,1742711231578,-500.0,0.0001995,2]
[356577071,1742711231607,-500.0,0.0001995,2]
[356577072,1742711231632,-500.0,0.0001995,2]
[356577073,1742711231659,-500.0,0.0001995,2]
[356577074,1742711231684,-500.0,0.0001995,2]
[356577075,1742711231715,-500.0,0.0001995,2]
[356577076,1742711231744,-12.52548555,0.0001995,2]
[356577077,1742711235079,-487.47451445,0.0001995,2]
[356577078,1742711235105,-500.0,0.0001995,2]
[356577079,1742711235132,-500.0,0.0001995,2]
[356577080,1742711235156,-500.0,0.0001995,2]
[356577081,1742711235182,-500.0,0.0001995,2]
[356577082,1742711235209,-500.0,0.0001995,2]
[356577083,1742711235239,-500.0,0.0001995,2]
[356577084,1742711235266,-417.7929153,0.0001995,2]
[356577105,1742711358148,-698.7399928,0.00019936,2]
[356577106,1742711358173,-82.2070847,0.0001995,2]
[356577107,1742711358197,-500.0,0.0001995,2]
[356577108,1742711358221,-500.0,0.0001995,2]
[356577109,1742711358245,-500.0,0.0001995,2]
[356577110,1742711358269,-500.0,0.0001995,2]
[356577111,1742711358294,-500.0,0.0001995,2]
[356577112,1742711358318,-500.0,0.0001995,2]
[356577113,1742711358342,-500.0,0.0001995,2]
[356577114,1742711358368,-248.2503225,0.0001995,2]
[356577140,1742711432716,-300.0,0.00019949,2]
[356577141,1742711432727,-251.7496775,0.0001995,2]
[356577142,1742711432737,-500.0,0.0001995,2]
[356577143,1742711432747,-500.0,0.0001995,2]
[356577144,1742711432757,-500.0,0.0001995,2]
[356577145,1742711432767,-500.0,0.0001995,2]
[356577146,1742711432776,-500.0,0.0001995,2]
[356577147,1742711432786,-500.0,0.0001995,2]
[356577148,1742711432795,-500.0,0.0001995,2]
[356577149,1742711432806,-500.0,0.0001995,2]
[356577150,1742711432815,-500.0,0.0001995,2]
[356577151,1742711432825,-500.0,0.0001995,2]
[356577152,1742711432835,-500.0,0.0001995,2]
[356577153,1742711432844,-445.15887593,0.0001995,2]
[356577154,1742711432854,-24900.0,0.00019951,2]
[356577155,1742711432864,-460.444053,0.00020101,2]
[356577156,1742711432874,-186.4270124,0.00020516,2]
[356577157,1742711432883,-151.0,0.00021241,2]
[356577158,1742711432893,-600.0,0.00021241,2]
[356577159,1742711432902,-346.45215649,0.00021253,2]
[356577160,1742711432912,-5000.0,0.00021254,2]
[356577161,1742711432921,-50058.04234053,0.00021254,2]
[356577162,1742711432934,-682.03105792,0.00021254,2]
[356577163,1742711432950,-2122.89697659,0.00021254,2]
[356577295,1742711924520,5500.0,0.00014,30]
[356577296,1742711924542,1714.0,0.00014,30]
[356577323,1742712401107,-239.10381584,0.00019552,2]
[356577325,1742712438078,-472.82939629,0.0001822,2]
[356577326,1742712438101,-302.31111354,0.00019552,2]
[356577327,1742712438124,-577.28526804,0.0001985,2]
[356577328,1742712454130,-3309.47616287,0.0001985,2]
[356577329,1742712454153,-300.0,0.00019976,2]
[356577330,1742712454176,-500.0,0.00019977,2]
[356577331,1742712454201,-500.0,0.00019977,2]
[356577332,1742712454225,-348.83874275,0.00019977,2]
[356577333,1742712454251,-500.0,0.00019977,2]
[356577334,1742712454274,-206.34414681,0.00019977,2]
[356577409,1742712638058,-230.222026,0.00019764,2]
[356577410,1742712638069,-399.18453538,0.00019876,2]
[356577457,1742712640064,-470.17660858,0.00019876,2]
[356577459,1742712640074,-300.0,0.00019976,2]
[356577461,1742712640083,-293.65585319,0.00019977,2]
[356577463,1742712640093,-500.0,0.00019977,2]
[356577465,1742712640102,-500.0,0.00019977,2]
[356577467,1742712640112,-500.0,0.00019977,2]
[356577469,1742712640121,-500.0,0.00019977,2]
[356577472,1742712640132,-500.0,0.00019977,2]
[356577473,1742712640141,-500.0,0.00019977,2]
[356577476,1742712640151,-500.0,0.00019977,2]
[356577478,1742712640160,-500.0,0.00019977,2]
[356577480,1742712640170,-500.0,0.00019977,2]
[356577482,1742712640180,-500.0,0.00019977,2]
[356577484,1742712640190,-500.0,0.00019977,2]
[356577486,1742712640199,-500.0,0.00019977,2]
[356577488,1742712640208,-500.0,0.00019977,2]
[356577490,1742712640218,-500.0,0.00019977,2]
[356577492,1742712640227,-500.0,0.00019977,2]
[356577494,1742712640237,-500.0,0.00019977,2]
[356577496,1742712640247,-500.0,0.00019977,2]
[356577498,1742712640256,-500.0,0.00019977,2]
[356577500,1742712640266,-227.31131826,0.00019977,2]
[356577502,1742712640275,-500.0,0.00019977,2]
[356577504,1742712640285,-500.0,0.00019977,2]
[356577506,1742712640294,-500.0,0.00019977,2]
[356577508,1742712640303,-500.0,0.00019977,2]
[356577510,1742712640312,-650.0,0.00019977,2]
[356577512,1742712640322,-500.0,0.00019977,2]
[356577514,1742712640332,-24900.0,0.00019978,2]
[356577517,1742712640341,-164.4155807,0.00020207,2]
[356577519,1742712640351,-1728.85900244,0.000211,2]
[356577521,1742712640360,-383.3985525,0.00021153,2]
[356577523,1742712640370,-5000.0,0.00021154,2]
[356577525,1742712640379,-105453.22182079,0.00021154,2]
[356577654,1742713639127,-277.705556,0.00019555,2]
[356577655,1742713639152,-1619.23805145,0.00019564,2]
[356577656,1742713639177,-198.75820887,0.00019664,2]
[356577657,1742713639200,-1240.685643,0.0001978,2]
[356577658,1742713639226,-500.0,0.00020123,2]
[356577659,1742713639255,-500.0,0.00020123,2]
[356577660,1742713639279,-300.0,0.00020124,2]
[356577661,1742713639303,-1249.2367877,0.00020125,2]
[356577665,1742713754102,-284.68003913,0.00018038,2]
[356577666,1742713754125,-99.50216094,0.0001822,2]
[356577676,1742713832012,-76.21073465,0.0001822,2]
[356577677,1742713832021,-300.0,0.00020123,2]
[356577678,1742713832030,-500.0,0.00020124,2]
[356577679,1742713832040,-500.0,0.00020124,2]
[356577680,1742713832049,-500.0,0.00020124,2]
[356577681,1742713832059,-500.0,0.00020124,2]
[356577682,1742713832068,-500.0,0.00020124,2]
[356577683,1742713832078,-500.0,0.00020124,2]
[356577684,1742713832087,-391.75134587,0.00020124,2]
[356577685,1742713832097,-500.0,0.00020124,2]
[356577686,1742713832106,-500.0,0.00020124,2]
[356577687,1742713832115,-500.0,0.00020124,2]
[356577688,1742713832124,-500.0,0.00020124,2]
[356577689,1742713832134,-463.75615545,0.00020124,2]
[356577699,1742713837860,-136.79351721,0.00020124,2]
[356577700,1742713837871,-500.0,0.00020124,2]
[356577701,1742713837882,-500.0,0.00020124,2]
[356577702,1742713837895,-500.0,0.00020124,2]
[356577703,1742713837905,-500.0,0.00020124,2]
[356577704,1742713837915,-128.81779512,0.00020124,2]
[356577705,1742713837927,-371.18220488,0.00020124,2]
[356577706,1742713837937,-500.0,0.00020124,2]
[356577708,1742713837947,-500.0,0.00020124,2]
[356577710,1742713837957,-500.0,0.00020124,2]
[356577712,1742713837967,-500.0,0.00020124,2]
[356577713,1742713837976,-500.0,0.00020124,2]
[356577714,1742713837986,-384.99426977,0.00020124,2]
[356577715,1742713838003,-115.00573023,0.00020124,2]
[356577716,1742713838016,-500.0,0.00020124,2]
[356577717,1742713838026,-154.22963989,0.00020124,2]
[356577737,1742713840335,-345.77036011,0.00020124,2]
[356577738,1742713840346,-150.39660977,0.00020124,2]
[356577760,1742713846060,-349.60339023,0.00020124,2]
[356577761,1742713846070,-500.0,0.00020124,2]
[356577762,1742713846080,-500.0,0.00020124,2]
[356577763,1742713846090,-500.0,0.00020124,2]
[356577764,1742713846099,-500.0,0.00020124,2]
[356577765,1742713846109,-23650.7632123,0.00020125,2]
[356577766,1742713846119,-176.9714474,0.0002036,2]
[356577767,1742713846128,-694.61,0.00021044,3]
[356577768,1742713846137,-326.51527032,0.00021053,2]
[356577769,1742713846147,-5000.0,0.00021054,2]
[356577770,1742713846157,-63148.76141709,0.00021054,2]
[356577771,1742713846168,-42111.64537246,0.00021054,2]
[356577773,1742713972409,154.55,0.0001522,120]
[356577777,1742714749122,-322.17148166,0.00016329,2]
[356577783,1742714839086,-675.58950405,0.00016166,2]
[356577784,1742714839112,-246.95736593,0.00016899,2]
[356577785,1742714839135,-277.7055563,0.00017466,2]
[356577786,1742714839157,-600.0,0.00018177,2]
[356577787,1742714839180,-300.0,0.00018218,2]
[356577789,1742714839206,-154.63903843,0.00018219,2]
[356577790,1742714839234,-500.0,0.00018219,2]
[356577791,1742714839259,-500.0,0.00018219,2]
[356577792,1742714839286,-500.0,0.00018219,2]
[356577793,1742714839313,-348.41164677,0.00018219,2]
[356577796,1742714914883,2454.8349281,8e-05,5]
[356577797,1742714947110,-300.0,0.00017899,2]
[356577798,1742714947132,-24419.0,0.000179,2]
[356577799,1742714947154,-250.0,0.00017941,2]
[356577800,1742714947175,-1633.36630183,0.000182,2]
[356577801,1742714947201,-151.58835323,0.00018219,2]
[356577802,1742714947226,-500.0,0.00018219,2]
[356577803,1742714947251,-500.0,0.00018219,2]
[356577804,1742714947276,-500.0,0.00018219,2]
[356577805,1742714947301,-500.0,0.00018219,2]
[356577806,1742714947326,-500.0,0.00018219,2]
[356577807,1742714947350,-500.0,0.00018219,2]
[356577808,1742714947376,-500.0,0.00018219,2]
[356577809,1742714947403,-500.0,0.00018219,2]
[356577810,1742714947428,-500.0,0.00018219,2]
[356577811,1742714947454,-431.7255534,0.00018219,2]
[356577812,1742714947479,-500.0,0.00018219,2]
[356577813,1742714947507,-500.0,0.00018219,2]
[356577814,1742714947532,-500.0,0.00018219,2]
[356577815,1742714947560,-500.0,0.00018219,2]
[356577816,1742714947588,-500.0,0.00018219,2]
[356577817,1742714947615,-500.0,0.00018219,2]
[356577818,1742714947640,-500.0,0.00018219,2]
[356577819,1742714947664,-500.0,0.00018219,2]
[356577820,1742714947689,-500.0,0.00018219,2]
[356577821,1742714947713,-500.0,0.00018219,2]
[356577822,1742714947738,-614.74068677,0.00018219,2]
[356577823,1742714947759,-500.0,0.0001822,2]
[356577824,1742714947780,-500.0,0.0001822,2]
[356577825,1742714947802,-500.0,0.0001822,2]
[356577826,1742714947822,-500.0,0.0001822,2]
[356577827,1742714947844,-500.0,0.0001822,2]
[356577828,1742714947867,-500.0,0.0001822,2]
[356577829,1742714947889,-500.0,0.0001822,2]
[356577830,1742714947909,-500.0,0.0001822,2]
[356577831,1742714947930,-700.0,0.0001822,2]
[356577832,1742714947951,-500.0,0.0001822,2]
[356577833,1742714947972,-704.83669227,0.0001822,2]
[356577834,1742714947994,-500.0,0.0001822,2]
[356577835,1742714948015,-500.0,0.0001822,2]
[356577836,1742714948037,-500.0,0.0001822,2]
[356577837,1742714948063,-500.0,0.0001822,2]
[356577839,1742714948084,-906.5688903,0.0001822,2]
[356577840,1742714948105,-509.9923483,0.0001822,2]
[356577841,1742714948126,-500.0,0.000183,2]
[356577842,1742714948148,-503.04053563,0.000183,2]
[356577844,1742714948169,-168.11780877,0.000183,2]
[356577845,1742714948190,-500.0,0.000183,2]
[356577846,1742714948210,-500.0,0.000183,2]
[356577847,1742714948231,-500.0,0.000183,2]
[356577848,1742714948251,-500.0,0.000183,2]
[356577850,1742714948272,-502.2511568,0.000183,2]
[356577851,1742714948293,-500.0,0.000183,2]
[356577852,1742714948314,-500.0,0.000183,2]
[356577853,1742714948334,-500.0,0.000183,2]
[356577854,1742714948355,-500.0,0.000183,2]
[356577855,1742714948375,-505.47395646,0.000183,2]
[356577856,1742714948398,-505.38305308,0.000183,2]
[356577857,1742714948419,-500.0,0.000183,2]
[356577858,1742714948440,-500.0,0.000183,2]
[356577859,1742714948462,-228.56068923,0.00018795,2]
[356577860,1742714948484,-24900.0,0.00018796,2]
[356577861,1742714948506,-334.17483657,0.00019265,2]
[356577862,1742714952142,-1299.19146523,0.00019265,2]
[356577863,1742714952165,-219.4792388,0.00019532,2]
[356577864,1742714953117,-196.0,0.00019532,2]
[356577897,1742715032416,-500.0,0.00019923,10]
[356577898,1742715032427,-300.0,0.00020099,2]
[356577899,1742715032438,-500.0,0.000201,2]
[356577900,1742715032449,-501.28631142,0.000201,2]
[356577901,1742715032461,-1000.0,0.000208,3]
[356577902,1742715032471,-159.99248246,0.00020952,2]
[356577903,1742715032482,-72163.76126,0.00020953,2]
[356577904,1742715032492,-5000.0,0.00020954,2]
[356577905,1742715032504,-16048.89272057,0.00020954,2]
[356577906,1742715032517,-1558.39137066,0.00020954,2]
[356577912,1742715038019,-152.40828145,0.00020854,2]
[356577913,1742715038029,-500.0,0.00020952,2]
[356577914,1742715038039,-500.0,0.00020952,2]
[356577915,1742715038049,-282.94069336,0.00020952,2]
[356577916,1742715038059,-51079.3094935,0.00020954,2]
[356577917,1742715038075,-54036.54696906,0.00020954,2]
[356577938,1742715040316,-16712.92420092,0.00020954,2]
[356577939,1742715040449,-833.189649,0.00020954,2]